bitfinex-derivatives/quotes_SOLF0:USTF0_20250109
["timestamp","ask_amount","ask_price","bid_price","bid_amount"]
[1736406035018,6.58539519,193.23,193.18,2.5893]
[1736406035316,15.53,193.35,193.17,6.58539519]
[1736406035618,6.58539519,193.21,193.2,2.5891]
[1736406036117,6.58539519,193.21,193.16,6.58539519]
[1736406036319,6.58539519,193.21,193.15,0.19764]
[1736406036519,6.58539519,193.21,193.16,6.58539519]
[1736406037416,6.58539519,193.21,193.15,0.19764]
[1736406037614,6.58539519,193.21,193.18,2.5893]
[1736406037815,6.58539519,193.21,193.16,6.58539519]
[1736406038018,6.58539519,193.21,193.16,2.5895]
[1736406038220,6.58539519,193.21,193.15,6.78303519]
[1736406038514,6.58539519,193.21,193.15,0.19764]
[1736406038822,209.53,193.32,193.15,0.19764]
[1736406039119,0.9276623,193.31,193.16,6.58539519]
[1736406039315,6.58539519,193.23,193.16,6.58539519]
[1736406039513,15.53,193.32,193.16,6.58539519]
[1736406039718,6.58539519,193.23,193.21,2.5889]
[1736406039911,2.5883,193.27,193.21,2.5889]
[1736406040116,6.58539519,193.23,193.21,2.5889]
[1736406041916,6.58539519,193.23,193.2,2.5891]
[1736406044523,6.58539519,193.23,193.21,2.5889]
[1736406049628,80.76,193.33,193.18,6.58539519]
[1736406049926,80.76,193.33,193.19,1.5951]
[1736406049927,6.58539519,193.25,193.19,1.5951]
[1736406050521,2.5879,193.29,193.19,1.5951]
[1736406050928,6.58539519,193.24,193.19,1.5951]
[1736406051124,2.5875,193.32,193.2,6.58539519]
[1736406051322,6.58539519,193.26,193.2,6.58539519]
[1736406051525,2.5874,193.33,193.22,6.58539519]
[1736406051724,6.58539519,193.29,193.22,6.58539519]
[1736406052232,6.58539519,193.27,193.22,6.58539519]
[1736406053032,6.58539519,193.27,193.25,2.5883]
[1736406055729,6.58539519,193.27,193.26,2.5883]
[1736406056029,6.58539519,193.29,193.26,2.5883]
[1736406056837,5.51105279,193.37,193.26,6.58539519]
[1736406057036,6.58539519,193.33,193.26,6.58539519]
[1736406057337,6.58539519,193.33,193.27,1.5765]
[1736406057538,5.51105279,193.37,193.28,6.58539519]
[1736406057729,6.58539519,193.35,193.28,8.18559519]
[1736406057931,6.58539519,193.35,193.34,2.5872]
[1736406058439,6.58539519,193.37,193.3,6.58539519]
[1736406058736,6.58539519,193.39,193.36,2.587]
[1736406059738,2.5859,193.44,193.37,2.5868]
[1736406059932,6.58539519,193.4,193.37,2.5868]
[1736406061937,6.58539519,193.4,193.38,2.5866]
[1736406062135,6.58539519,193.44,193.38,6.58539519]
[1736406062341,6.58539519,193.42,193.36,1.5867]
[1736406062535,6.58539519,193.4,193.36,1.5867]
[1736406063640,2.586,193.43,193.36,4.1736]
[1736406063837,6.58539519,193.41,193.36,1.5867]
[1736406064037,80.76,193.49,193.37,6.58539519]
[1736406064246,6.58539519,193.44,193.41,2.5863]
[1736406065241,6.58539519,193.42,193.41,2.5863]
[1736406065629,2.5855,193.47,193.41,2.5863]
[1736406065831,6.58539519,193.43,193.41,2.5863]
[1736406066039,6.58539519,193.43,193.42,2.5862]
[1736406066236,6.58539519,193.45,193.42,2.5862]
[1736406067630,6.58539519,193.45,193.43,2.586]
[1736406070441,64.36695561,193.5,193.45,2.5858]
[1736406070640,6.58539519,193.48,193.43,6.58539519]
[1736406070831,80.72,193.61,193.43,6.58539519]
[1736406071035,6.58539519,193.51,193.49,2.5852]
[1736406073247,6.58539519,193.56,193.49,6.58539519]
[1736406073642,6.58539519,193.56,193.54,2.5844]
[1736406073837,6.58539519,193.56,193.49,6.58539519]
[1736406074038,80.72,193.61,193.49,6.58539519]
[1736406074239,6.58539519,193.57,193.49,6.58539519]
[1736406074747,6.58539519,193.57,193.54,2.5844]
[1736406074938,6.58539519,193.57,193.51,6.58539519]
[1736406075133,6.58539519,193.59,193.51,6.58539519]
[1736406075342,6.58539519,193.57,193.51,6.58539519]
[1736406075739,80.72,193.61,193.51,6.58539519]
[1736406075941,6.58539519,193.58,193.52,1.5643]
[1736406077037,6.58539519,193.58,193.54,2.5845]
[1736406077244,6.58539519,193.56,193.49,6.58539519]
[1736406077439,72.27386903,193.62,193.49,6.58539519]
[1736406077440,6.58539519,193.54,193.49,6.58539519]
[1736406077638,72.27386903,193.62,193.49,6.58539519]
[1736406077838,6.58539519,193.55,193.49,6.58539519]
[1736406078037,6.58539519,193.57,193.51,6.58539519]
[1736406078444,15.53,193.72,193.55,6.58539519]
[1736406078652,6.58539519,193.65,193.58,6.58539519]
[1736406078840,9.16859519,193.65,193.58,9.16929519]
[1736406079034,9.16859519,193.65,193.58,6.58539519]
[1736406079243,15.53,193.72,193.58,6.58539519]
[1736406079445,6.58539519,193.64,193.6,2.5837]
[1736406079642,15.53,193.73,193.58,6.58539519]
[1736406079837,0.92855341,193.72,193.58,6.58539519]
[1736406080041,6.58539519,193.66,193.61,2.5835]
[1736406080244,6.58539519,193.66,193.6,6.58539519]
[1736406080753,6.58539519,193.66,193.58,6.58539519]
[1736406081642,6.58539519,193.66,193.6,2.5836]
[1736406082251,5.50639962,193.74,193.64,6.58539519]
[1736406082445,9.16739519,193.73,193.66,9.16829519]
[1736406082750,6.58539519,193.73,193.66,9.16829519]
[1736406083144,8.08829962,193.74,193.67,2.5827]
[1736406083352,12.09179481,193.74,193.68,6.58539519]
[1736406083547,6.58539519,193.72,193.5,287.21]
[1736406083749,6.58539519,193.7,193.64,6.58539519]
[1736406083946,6.58539519,193.7,193.65,2.5831]
[1736406084251,12.09179481,193.74,193.66,6.58539519]
[1736406084450,12.09179481,193.74,193.68,6.58539519]
[1736406084842,5.50639962,193.74,193.69,2.5825]
[1736406085152,5.50639962,193.74,193.7,6.58539519]
[1736406085851,6.58539519,193.76,193.7,6.58539519]
[1736406086243,6.58539519,193.76,193.7,9.16779519]
[1736406088055,6.58539519,193.76,193.71,2.5822]
[1736406088257,15.53,193.85,193.72,6.58539519]
[1736406088554,0.93035606,193.84,193.72,6.58539519]
[1736406088754,6.58539519,193.78,193.73,2.582]
[1736406091945,6.58539519,193.76,193.57,15.55]
[1736406092147,6.58539519,193.74,193.67,6.58539519]
[1736406092349,6.58539519,193.72,193.66,6.58539519]
[1736406093159,6.58539519,193.72,193.68,2.5827]
[1736406093550,9.16739519,193.74,193.68,2.5827]
[1736406095354,9.16759519,193.72,193.65,2.583]
[1736406095554,6.58539519,193.7,193.57,191.0]
[1736406095751,6.58539519,193.7,193.63,6.58539519]
[1736406096058,6.58539519,193.72,193.65,6.58539519]
[1736406096259,6.58539519,193.74,193.67,6.58539519]
[1736406097161,6.58539519,193.72,193.65,6.58539519]
[1736406097353,6.58539519,193.7,193.65,6.58539519]
[1736406097559,6.58539519,193.7,193.64,2.5831]
[1736406097955,6.58539519,193.7,193.63,6.58539519]
[1736406098157,6.58539519,193.7,193.65,2.583]
[1736406098361,6.58539519,193.7,193.65,6.58539519]
[1736406099257,6.58539519,193.72,193.65,6.58539519]
[1736406099462,15.53,193.84,193.67,6.58539519]
[1736406099659,6.58539519,193.73,193.67,6.58539519]
[1736406099861,6.58539519,193.73,193.67,9.16809519]
[1736406100563,9.16739519,193.73,193.67,9.16809519]
[1736406100754,6.58539519,193.71,193.65,6.58539519]
[1736406100955,6.58539519,193.69,193.64,2.5831]
[1736406101759,6.58539519,193.69,193.65,2.5831]
[1736406102058,6.58539519,193.71,193.65,6.58539519]
[1736406102361,6.58539519,193.73,193.67,6.58539519]
[1736406103063,6.58539519,193.73,193.68,2.5827]
[1736406103259,2.582,193.74,193.68,2.5827]
[1736406103958,2.582,193.74,193.69,2.5826]
[1736406105461,12.82348613,193.74,193.69,2.5826]
[1736406105764,2.5822,193.72,193.65,2.583]
[1736406105962,2.5822,193.72,193.62,10.24148613]
[1736406106166,2.5822,193.72,193.63,1.4982]
[1736406107366,10.24148613,193.74,193.63,1.4982]
[1736406107665,2.582,193.73,193.63,1.4982]
[1736406108879,2.5817,193.76,193.65,10.24148613]
[1736406109381,2.5817,193.76,193.69,2.5824]
[1736406109687,2.5817,193.76,193.65,10.24148613]
[1736406109884,2.5817,193.76,193.68,10.24148613]
[1736406111087,2.5817,193.76,193.71,2.5823]
[1736406112985,15.53,193.84,193.63,8.68681066]
[1736406112986,10.24148613,193.74,193.63,8.68681066]
[1736406113185,10.24148613,193.74,193.63,30.13355623]
[1736406113380,10.24148613,193.71,193.63,30.13355623]
[1736406113585,12.82388613,193.71,193.66,2.5829]
[1736406114387,10.24148613,193.71,193.63,1.4982]
[1736406116089,2.5826,193.69,193.64,2.5832]
[1736406116286,10.24148613,193.71,193.63,1.4982]
[1736406116486,10.24148613,193.71,193.59,7.18861066]
[1736406116890,2.5828,193.68,193.63,2.5832]
[1736406118787,10.24148613,193.71,193.58,30.20025623]
[1736406118987,2.583,193.66,193.61,2.5836]
[1736406119286,2.583,193.66,193.58,8.75351066]
[1736406119287,10.24148613,193.62,193.58,7.18861066]
[1736406119490,12.82508613,193.62,193.58,7.18861066]
[1736406119684,10.24148613,193.62,193.58,7.18861066]
[1736406120088,2.5839,193.59,193.54,2.5846]
[1736406120690,2.5838,193.6,193.55,2.5844]
[1736406121189,10.24148613,193.62,193.53,1.4627]
[1736406121389,10.24148613,193.59,193.49,28.63535623]
[1736406121590,10.24148613,193.59,193.48,10.22301066]
[1736406122489,10.24148613,193.59,193.48,3.0344]
[1736406122792,12.82578613,193.56,193.48,3.0344]
[1736406122993,10.24148613,193.56,193.48,3.0344]
[1736406123186,10.24148613,193.56,193.51,2.585]
[1736406125491,2.5841,193.58,193.51,2.585]
[1736406126088,2.5841,193.58,193.52,2.5848]
[1736406128287,2.5838,193.6,193.5,10.24148613]
[1736406128591,10.24148613,193.62,193.5,10.24148613]
[1736406129391,2.5836,193.61,193.5,10.24148613]
[1736406130094,2.5836,193.61,193.53,2.5847]
[1736406130293,2.5836,193.61,193.5,10.24148613]
[1736406131602,2.5836,193.61,193.54,2.5844]
[1736406132399,2.5836,193.61,193.5,10.24148613]
[1736406132596,2.5836,193.61,193.55,2.5844]
[1736406132893,10.24148613,193.62,193.5,10.24148613]
[1736406133194,10.24148613,193.62,193.53,10.24148613]
[1736406133400,12.82498613,193.62,193.53,10.24148613]
[1736406133798,2.5841,193.58,193.5,10.24148613]
[1736406134001,15.53,193.68,193.48,3.0344]
[1736406134300,10.24148613,193.6,193.52,2.5847]
[1736406134694,10.24148613,193.6,193.48,3.0344]
[1736406134894,10.24148613,193.6,193.53,2.5846]
[1736406135091,10.24148613,193.6,193.48,3.0344]
[1736406135291,10.24148613,193.6,193.54,2.5845]
[1736406135492,10.24148613,193.7,193.48,3.0344]
[1736406135493,10.24148613,193.63,193.53,10.24148613]
[1736406136494,10.24148613,193.66,193.53,10.24148613]
[1736406136701,2.5832,193.65,193.56,2.5842]
[1736406136901,2.5832,193.65,193.53,10.24148613]
[1736406138099,2.5832,193.65,193.59,2.5838]
[1736406138303,10.24148613,193.7,193.56,10.24148613]
[1736406138304,2.5828,193.67,193.56,10.24148613]
[1736406138496,10.24148613,193.7,193.63,2.5833]
[1736406138696,10.24148613,193.7,193.59,10.24148613]
[1736406138904,10.24148613,193.73,193.59,10.24148613]
[1736406139200,80.58,193.76,193.59,10.24148613]
[1736406139499,0.92771454,193.72,193.62,10.24148613]
[1736406139809,0.92771454,193.72,193.65,2.583]
[1736406139993,10.24148613,193.74,193.62,10.24148613]
[1736406140200,0.92779384,193.73,193.62,10.24148613]
[1736406140600,2.5824,193.7,193.59,10.24148613]
[1736406140797,10.24148613,193.68,193.57,3.0712]
[1736406141705,12.82418613,193.68,193.57,3.0712]
[1736406142006,12.82418613,193.68,193.6,2.5837]
[1736406142208,12.82418613,193.68,193.57,3.0712]
[1736406143103,12.82418613,193.68,193.61,2.5835]
[1736406143603,12.82418613,193.68,193.57,3.0712]
[1736406144208,10.24148613,193.68,193.62,2.5835]
[1736406144806,10.24148613,193.68,193.63,2.5833]
[1736406145107,2.5826,193.69,193.63,2.5833]
[1736406145405,2.5824,193.7,193.64,2.5832]
[1736406146206,10.24148613,193.71,193.59,10.24148613]
[1736406146404,10.24148613,193.68,193.57,3.0712]
[1736406146808,10.24148613,193.68,193.59,2.5838]
[1736406147010,10.24148613,193.65,193.57,3.0712]
[1736406147315,10.24148613,193.68,193.57,3.0712]
[1736406147510,10.24148613,193.68,193.62,2.5835]
[1736406147710,10.24148613,193.68,193.57,3.0712]
[1736406148012,10.24148613,193.68,193.63,2.5832]
[1736406148412,2.5827,193.69,193.59,10.24148613]
[1736406148802,12.82388613,193.71,193.66,2.5828]
[1736406149111,10.24148613,193.71,193.59,10.24148613]
[1736406149503,10.24148613,193.71,193.67,2.5827]
[1736406151502,2.582,193.73,193.67,2.5827]
[1736406152107,2.582,193.73,193.59,10.24148613]
[1736406152317,2.582,193.73,193.68,2.5827]
[1736406152709,10.24148613,193.74,193.69,2.5825]
[1736406153308,2.5821,193.73,193.69,2.5825]
[1736406156015,12.82338613,193.74,193.62,10.24148613]
[1736406156211,80.58,193.76,193.65,10.24148613]
[1736406156407,10.24148613,193.77,193.66,1.4599]
[1736406156609,12.82308613,193.77,193.72,2.5821]
[1736406156814,10.24148613,193.77,193.66,3.0786]
[1736406157412,2.5818,193.75,193.66,3.0786]
[1736406158415,2.5818,193.75,193.68,2.5826]
[1736406158617,2.5818,193.75,193.66,3.0786]
[1736406159414,10.24148613,193.75,193.66,3.0786]
[1736406159609,10.24148613,193.72,193.66,1.4599]
[1736406160217,2.5824,193.71,193.66,4.0428]
[1736406163918,12.82368613,193.72,193.66,4.0428]
[1736406165217,12.82368613,193.72,193.67,2.5828]
[1736406165717,2.5819,193.74,193.69,2.5826]
[1736406166115,2.5819,193.74,193.66,1.4599]
[1736406166618,2.5819,193.74,193.68,2.5826]
[1736406166914,2.5832,193.64,193.53,56.66919001]
[1736406167118,2.5832,193.64,193.55,3.0713]
[1736406167418,12.82418613,193.69,193.55,13.31278613]
[1736406167606,10.24148613,193.69,193.55,13.31278613]
[1736406167814,10.24148613,193.69,193.61,2.5836]
[1736406168118,10.24148613,193.69,193.55,13.31278613]
[1736406168119,2.5831,193.65,193.55,13.31278613]
[1736406169014,10.24148613,193.63,193.55,3.0713]
[1736406169515,10.24148613,193.63,193.58,2.584]
[1736406171007,2.5832,193.64,193.59,2.5839]
[1736406171819,10.24148613,193.66,193.55,3.0713]
[1736406172021,2.5831,193.65,193.6,2.5837]
[1736406173217,80.58,193.76,193.55,3.0713]
[1736406173418,2.5822,193.72,193.67,2.5828]
[1736406173618,177.94862121,193.79,193.64,1.5705]
[1736406173821,10.24148613,193.77,193.64,1.5705]
[1736406174023,2.582,193.74,193.64,3.1565]
[1736406174423,2.582,193.74,193.67,2.5828]
[1736406174719,2.582,193.74,193.64,3.1565]
[1736406175718,2.582,193.74,193.68,2.5826]
[1736406175919,2.5822,193.72,193.64,3.1565]
[1736406176821,2.5819,193.74,193.68,2.5827]
[1736406177021,10.24148613,193.77,193.64,3.1565]
[1736406177323,0.92607615,193.76,193.64,3.1565]
[1736406177724,2.5821,193.73,193.68,2.5826]
[1736406177924,10.24148613,193.77,193.64,3.1565]
[1736406178721,0.92637183,193.76,193.64,3.1565]
[1736406178924,2.5819,193.75,193.64,3.1565]
[1736406179124,2.5819,193.75,193.66,10.24148613]
[1736406180924,2.5819,193.75,193.7,2.5823]
[1736406182129,10.24148613,193.8,193.66,10.24148613]
[1736406182328,10.24148613,193.8,193.69,10.24148613]
[1736406183016,2.5814,193.79,193.69,10.24148613]
[1736406183730,2.5814,193.79,193.73,2.5819]
[1736406184222,2.5814,193.78,193.73,2.5819]
[1736406185024,10.24148613,193.8,193.69,10.24148613]
[1736406185228,15.53,193.84,193.69,10.24148613]
[1736406185430,0.92676703,193.8,193.69,10.24148613]
[1736406186124,2.5814,193.78,193.73,2.5819]
[1736406188728,15.74536465,193.81,193.73,2.5819]
[1736406188930,2.5816,193.77,193.73,2.5819]
[1736406189523,15.74536465,193.81,193.69,10.24148613]
[1736406189826,10.24148613,193.75,193.64,3.1565]
[1736406190432,2.5823,193.71,193.68,2.5826]
[1736406190626,10.24148613,193.75,193.64,3.1565]
[1736406190932,25.77148613,193.78,193.57,10.24148613]
[1736406190933,10.24148613,193.69,193.57,10.24148613]
[1736406191132,2.583,193.66,193.61,2.5836]
[1736406191328,10.24148613,193.69,193.58,1.4637]
[1736406191527,2.5827,193.68,193.61,2.5836]
[1736406191727,2.5827,193.68,193.58,1.4637]
[1736406192130,2.5827,193.68,193.62,2.5834]
[1736406193031,2.5827,193.68,193.63,2.5833]
[1736406193430,2.5829,193.67,193.58,1.4637]
[1736406194128,2.5829,193.67,193.6,2.5837]
[1736406194326,2.5829,193.67,193.58,1.4637]
[1736406194937,2.5827,193.68,193.62,2.5835]
[1736406195134,10.24148613,193.72,193.58,1.4637]
[1736406195438,2.5826,193.69,193.63,2.5834]
[1736406195931,2.5826,193.69,193.64,2.5832]
[1736406196130,2.5824,193.71,193.6,10.24148613]
[1736406196431,10.24148613,193.75,193.66,2.5829]
[1736406196634,10.24148613,193.75,193.63,10.24148613]
[1736406198239,2.5822,193.72,193.67,2.5828]
[1736406199435,2.5822,193.72,193.68,2.5826]
[1736406199641,2.582,193.74,193.64,1.4637]
[1736406200041,2.582,193.74,193.67,2.5828]
[1736406200341,2.582,193.74,193.64,1.4637]
[1736406201843,2.582,193.74,193.68,2.5826]
[1736406202043,2.582,193.74,193.66,10.24148613]
[1736406202233,2.5818,193.75,193.67,1.5979]
[1736406202639,10.24148613,193.78,193.71,2.5823]
[1736406203141,2.5817,193.76,193.71,2.5823]
[1736406203331,10.24148613,193.78,193.71,2.5823]
[1736406203533,2.5816,193.76,193.71,2.5823]
[1736406203737,10.24148613,193.78,193.67,1.5979]
[1736406203938,10.24148613,193.78,193.7,2.5824]
[1736406204531,10.24148613,193.78,193.68,2.5826]
[1736406204740,10.24148613,193.75,193.68,2.5826]
[1736406205139,2.582,193.73,193.68,2.5826]
[1736406205640,10.24148613,193.75,193.68,2.5826]
[1736406205938,2.5822,193.72,193.68,2.5826]
[1736406206742,10.24148613,193.72,193.64,1.4637]
[1736406206943,10.24148613,193.72,193.6,10.24148613]
[1736406207443,2.5828,193.68,193.63,2.5833]
[1736406208143,2.5828,193.68,193.64,2.5832]
[1736406211038,2.5828,193.68,193.63,2.5833]
[1736406213038,2.5823,193.71,193.66,2.5828]
[1736406213237,10.24148613,193.72,193.6,10.24148613]
[1736406213433,10.24148613,193.75,193.63,10.24148613]
[1736406213637,2.5822,193.72,193.67,2.5827]
[1736406216145,10.24148613,193.75,193.64,1.6102]
[1736406216845,2.5823,193.72,193.67,2.5827]
[1736406218549,2.5821,193.73,193.68,2.5826]
[1736406219643,2.5821,193.73,193.65,1.592]
[1736406219945,2.5819,193.74,193.65,1.592]
[1736406220352,2.5819,193.74,193.69,2.5824]
[1736406220546,2.5821,193.73,193.69,2.5824]
[1736406220747,10.24148613,193.75,193.65,1.592]
[1736406221352,6.55709444,193.71,193.66,2.5829]
[1736406221548,6.55709444,193.71,193.65,8.14909444]
[1736406221851,6.55709444,193.69,193.57,7.18861066]
[1736406222047,6.55709444,193.67,193.61,6.55709444]
[1736406222349,6.55709444,193.65,193.62,2.5834]
[1736406222950,6.55709444,193.65,193.59,6.55709444]
[1736406223154,6.55709444,193.65,193.63,2.5833]
[1736406223450,2.5828,193.68,193.63,2.5833]
[1736406225050,12.83360106,193.69,193.64,2.5832]
[1736406226251,2.5828,193.68,193.63,2.5833]
[1736406227247,12.83360106,193.69,193.64,2.5831]
[1736406228751,12.83360106,193.69,193.58,2.9992]
[1736406228947,15.51,193.77,193.66,2.583]
[1736406228948,2.5824,193.7,193.66,2.583]
[1736406229156,10.25100106,193.72,193.6,10.25100106]
[1736406229345,10.25100106,193.75,193.6,10.25100106]
[1736406229548,2.5821,193.73,193.6,10.25100106]
[1736406230352,2.5821,193.73,193.63,10.25100106]
[1736406231254,2.5821,193.73,193.68,2.5826]
[1736406231952,2.5822,193.72,193.68,2.5826]
[1736406232154,2.5822,193.72,193.69,2.5825]
[1736406233564,2.5819,193.74,193.71,2.5823]
[1736406235659,2.5819,193.74,193.63,10.25100106]
[1736406235860,2.5819,193.74,193.7,2.5824]
[1736406236758,10.25100106,193.75,193.63,10.25100106]
[1736406236759,2.5821,193.73,193.69,2.5825]
[1736406237558,10.25100106,193.75,193.69,2.5825]
[1736406237764,10.25100106,193.75,193.67,2.5827]
[1736406237964,10.25100106,193.75,193.63,10.25100106]
[1736406238162,2.5822,193.72,193.63,10.25100106]
[1736406238360,2.5822,193.72,193.68,2.5826]
[1736406240464,10.25100106,193.69,193.58,10.18781066]
[1736406240764,10.25100106,193.69,193.58,2.9992]
[1736406240966,10.25100106,193.69,193.65,2.5831]
[1736406241161,10.25100106,193.69,193.58,2.9992]
[1736406241561,12.83360106,193.69,193.65,2.5831]
[1736406243262,6.55984064,193.67,193.65,2.5831]
[1736406243469,6.55984064,193.67,193.64,2.5832]
[1736406243959,6.55984064,193.67,193.61,6.55984064]
[1736406244166,9.14274064,193.67,193.62,2.5834]
[1736406246265,6.55984064,193.65,193.62,2.5834]
[1736406246471,6.55984064,193.63,193.62,2.5834]
[1736406246665,6.55984064,193.63,193.58,9.55904064]
[1736406246666,6.55984064,193.63,193.58,2.9992]
[1736406246966,6.55984064,193.61,193.58,1.4736]
[1736406247470,15.51,193.74,193.59,6.55984064]
[1736406247667,6.55984064,193.67,193.59,6.55984064]
[1736406247971,6.55984064,193.67,193.62,2.5834]
[1736406248362,9.14264064,193.67,193.62,2.5834]
[1736406248764,6.55984064,193.67,193.63,2.5833]
[1736406251668,15.51,193.78,193.61,6.55984064]
[1736406251861,6.55984064,193.7,193.63,6.55984064]
[1736406252467,6.55984064,193.72,193.65,6.55984064]
[1736406252976,6.55984064,193.74,193.7,2.5823]
[1736406253169,6.55984064,193.74,193.67,6.55984064]
[1736406253767,9.14174064,193.74,193.67,6.55984064]
[1736406253973,9.14174064,193.74,193.69,2.5825]
[1736406254173,6.55984064,193.72,193.69,2.5825]
[1736406256977,6.55984064,193.73,193.69,2.5825]
[1736406258380,9.14164064,193.75,193.7,2.5824]
[1736406258583,9.14164064,193.75,193.67,6.55984064]
[1736406258876,6.55984064,193.75,193.72,2.582]
[1736406259180,6.55984064,193.75,193.69,6.55984064]
[1736406260080,9.14144064,193.77,193.73,2.582]
[1736406261483,6.55984064,193.75,193.72,2.5821]
[1736406262474,6.55984064,193.73,193.6,8.79141066]
[1736406262679,6.55984064,193.71,193.65,6.55984064]
[1736406264081,6.55984064,193.73,193.67,6.55984064]
[1736406264888,6.55984064,193.75,193.69,6.55984064]
[1736406265276,6.55984064,193.77,193.71,6.55984064]
[1736406265776,2.5814,193.78,193.71,6.55984064]
[1736406265980,6.55984064,193.77,193.71,6.55984064]
[1736406266582,6.55984064,193.75,193.73,2.5819]
[1736406266786,6.55984064,193.75,193.69,6.55984064]
[1736406267287,6.55984064,193.75,193.71,2.5822]
[1736406267483,6.55984064,193.75,193.69,6.55984064]
[1736406268080,2.5817,193.76,193.71,2.5823]
[1736406268987,2.5817,193.76,193.69,6.55984064]
[1736406269189,2.5815,193.78,193.71,6.55984064]
[1736406269483,9.14134064,193.78,193.71,6.55984064]
[1736406270091,9.14134064,193.78,193.74,2.5819]
[1736406270587,5.50353419,193.83,193.75,6.55984064]
[1736406270785,12.06337483,193.83,193.75,6.55984064]
[1736406270984,8.08423419,193.83,193.77,6.55984064]
[1736406271585,8.08423419,193.83,193.79,2.5812]
[1736406272991,5.50353419,193.83,193.79,6.55984064]
[1736406273187,15.51,193.92,193.79,6.55984064]
[1736406273188,9.14014064,193.86,193.82,2.5808]
[1736406273387,6.55984064,193.88,193.81,6.55984064]
[1736406273582,9.13994064,193.88,193.81,6.55984064]
[1736406274286,9.13994064,193.88,193.83,2.5806]
[1736406275084,6.55984064,193.88,193.81,6.55984064]
[1736406275292,6.55984064,193.88,193.84,2.5805]
[1736406276995,6.55984064,193.88,193.81,6.55984064]
[1736406277195,6.55984064,193.88,193.82,2.5807]
[1736406278196,2.5802,193.87,193.82,2.5807]
[1736406278897,2.5802,193.87,193.83,2.5807]
[1736406279397,9.13994064,193.88,193.83,2.5807]
[1736406279794,9.13994064,193.88,193.84,2.5806]
[1736406280197,6.55984064,193.9,193.84,6.55984064]
[1736406281896,6.55984064,193.9,193.87,2.5802]
[1736406282697,2.5797,193.91,193.87,2.5802]
[1736406282893,6.55984064,193.91,193.82,6.55984064]
[1736406283098,6.55984064,193.87,193.81,8.07894064]
[1736406284095,2.5803,193.86,193.82,2.5807]
[1736406284598,2.5803,193.86,193.81,10.65984064]
[1736406284794,6.55984064,193.83,193.8,1.5597]
[1736406284995,6.55984064,193.83,193.76,6.55984064]
[1736406285297,6.55984064,193.83,193.69,3.074]
[1736406285502,21.01025619,193.95,193.75,6.55984064]
[1736406285503,6.55984064,193.81,193.75,6.55984064]
[1736406286004,6.55984064,193.81,193.77,2.5815]
[1736406286405,6.55984064,193.83,193.77,2.5815]
[1736406286702,6.55984064,193.83,193.78,2.5814]
[1736406287403,6.55984064,193.86,193.79,6.55984064]
[1736406288001,6.55984064,193.86,193.81,2.5809]
[1736406288211,6.55984064,193.86,193.81,9.14074064]
[1736406289204,6.55984064,193.86,193.82,2.5808]
[1736406290205,9.13994064,193.88,193.82,2.5808]
[1736406290804,2.5798,193.9,193.85,6.55984064]
[1736406291402,2.5798,193.9,193.85,9.14024064]
[1736406291807,2.5798,193.9,193.85,2.5804]
[1736406291998,15.51,194.0,193.87,6.55984064]
[1736406292205,15.51,194.0,193.69,238.25935623]
[1736406292206,6.55984064,193.96,193.89,6.55984064]
[1736406293205,6.55984064,193.98,193.91,9.13944064]
[1736406293408,10.21776698,194.0,193.91,2.5796]
[1736406293801,2.5791,193.95,193.91,2.5796]
[1736406294710,15.51,194.07,193.88,10.21776698]
[1736406294711,2.5789,193.97,193.92,2.5794]
[1736406295004,10.21776698,194.0,193.92,2.5794]
[1736406295211,2.5793,193.94,193.9,2.5798]
[1736406295901,2.5791,193.95,193.9,2.5798]
[1736406296512,10.21776698,194.0,193.88,10.21776698]
[1736406296708,0.92663758,193.99,193.88,10.21776698]
[1736406298107,2.5789,193.97,193.92,2.5795]
[1736406298304,2.5789,193.97,193.88,10.21776698]
[1736406298508,10.21776698,194.0,193.88,10.21776698]
[1736406298705,2.5783,194.01,193.97,2.5788]
[1736406300216,2.5785,194.0,193.95,2.579]
[1736406300617,10.21776698,194.03,193.91,10.21776698]
[1736406300810,2.5789,193.97,193.92,2.5795]
[1736406301311,10.21776698,194.03,193.91,10.21776698]
[1736406301616,10.21776698,194.0,193.88,10.21776698]
[1736406301813,0.92713221,193.99,193.88,10.21776698]
[1736406302213,0.92713221,193.99,193.92,2.5795]